[Event "Titled Tuesday Blitz May 03 Late 2022"]
[White "Suleymanli, Aydin"]
[Black "Goltsev, Dmitry"]
[WhiteFideId "13413937"]
[BlackFideId "24176710"]
[WhiteElo "2481"]
[BlackElo "2273"]
[Result "0-1"]
[Round "03"]
[TimeControl "180+1"]
[Date "2022.05.03"]
[WhiteClock "0:00:15"]
[BlackClock "0:00:27"]

1. e4 {[%clk 0:03:00]}  e6 {[%clk 0:03:00]} 2. d4 {[%clk 0:02:59]}  d5 {[%clk 0:03:01]} 3. Nd2 {[%clk 0:02:58]}  c5 {[%clk 0:03:01]} 4. Ngf3 {[%clk 0:02:56]}  Nf6 {[%clk 0:03:01]} 5. exd5 {[%clk 0:02:54]}  exd5 {[%clk 0:03:01]} 6. Bb5+ {[%clk 0:02:49]}  Nc6 {[%clk 0:03:01]} 7. O-O {[%clk 0:02:48]}  Be7 {[%clk 0:03:01]} 8. dxc5 {[%clk 0:02:48]}  Bxc5 {[%clk 0:03:01]} 9. Nb3 {[%clk 0:02:46]}  Bb6 {[%clk 0:03:01]} 10. Re1+ {[%clk 0:02:46]}  Be6 {[%clk 0:03:01]} 11. Be3 {[%clk 0:02:44]}  O-O {[%clk 0:03:01]} 12. Nfd4 {[%clk 0:02:30]}  Nxd4 {[%clk 0:02:58]} 13. Bxd4 {[%clk 0:02:28]}  Ne4 {[%clk 0:02:57]} 14. c3 {[%clk 0:02:18]}  Qh4 {[%clk 0:02:50]} 15. Bxb6 {[%clk 0:01:56]}  axb6 {[%clk 0:02:49]} 16. Qd4 {[%clk 0:01:56]}  Qd8 {[%clk 0:02:13]} 17. Bd3 {[%clk 0:01:53]}  Nd6 {[%clk 0:02:03]} 18. Re2 {[%clk 0:01:41]}  b5 {[%clk 0:01:47]} 19. Nc5 {[%clk 0:01:38]}  Qc8 {[%clk 0:01:46]} 20. Nxe6 {[%clk 0:01:31]}  fxe6 {[%clk 0:01:45]} 21. Rae1 {[%clk 0:01:31]}  Rf6 {[%clk 0:01:40]} 22. a3 {[%clk 0:01:23]}  Ra4 {[%clk 0:01:37]} 23. Qb6 {[%clk 0:01:20]}  Ra6 {[%clk 0:01:35]} 24. Qe3 {[%clk 0:01:17]}  Ra4 {[%clk 0:01:30]} 25. Qh3 {[%clk 0:01:15]}  Rh6 {[%clk 0:01:28]} 26. Qg3 {[%clk 0:01:14]}  Qd7 {[%clk 0:01:23]} 27. Re5 {[%clk 0:01:08]}  Rf6 {[%clk 0:01:12]} 28. Qh3 {[%clk 0:01:02]}  Rh6 {[%clk 0:01:08]} 29. Rh5 {[%clk 0:00:44]}  Rxh5 {[%clk 0:01:07]} 30. Qxh5 {[%clk 0:00:45]}  g6 {[%clk 0:01:04]} 31. Qe5 {[%clk 0:00:44]}  d4 {[%clk 0:00:55]} 32. cxd4 {[%clk 0:00:41]}  Nf7 {[%clk 0:00:51]} 33. Qxb5 {[%clk 0:00:40]}  Rxd4 {[%clk 0:00:47]} 34. Qxd7 {[%clk 0:00:39]}  Rxd7 {[%clk 0:00:48]} 35. Bc4 {[%clk 0:00:39]}  Rd2 {[%clk 0:00:47]} 36. Rxe6 {[%clk 0:00:35]}  Kf8 {[%clk 0:00:37]} 37. h4 {[%clk 0:00:31]}  Nd6 {[%clk 0:00:35]} 38. Bf1 {[%clk 0:00:25]}  Nf5 {[%clk 0:00:34]} 39. h5 {[%clk 0:00:25]}  Rxb2 {[%clk 0:00:31]} 40. hxg6 {[%clk 0:00:23]}  hxg6 {[%clk 0:00:32]} 41. Rxg6 {[%clk 0:00:22]}  Ke7 {[%clk 0:00:32]} 42. g3 {[%clk 0:00:21]}  Nd4 {[%clk 0:00:31]} 43. Kg2 {[%clk 0:00:18]}  Nc2 {[%clk 0:00:29]} 44. Rg4 {[%clk 0:00:18]}  Ne3+ {[%clk 0:00:28]} 45. Kg1 {[%clk 0:00:15]}  Nxg4 {[%clk 0:00:27]} 0-1


[Site "https://www.chess.com"]

[Event "Titled Tuesday Blitz May 03 Late 2022"]
[White "Svane, Rasmus"]
[Black "Wieczorek, Oskar"]
[WhiteFideId "4657101"]
[BlackFideId "1133950"]
[WhiteElo "2645"]
[BlackElo "2319"]
[Result "1-0"]
[Round "03"]
[TimeControl "180+1"]
[Date "2022.05.03"]
[WhiteClock "0:01:30"]
[BlackClock "0:01:08"]

1. Nf3 {[%clk 0:03:00]}  Nf6 {[%clk 0:02:59]} 2. g3 {[%clk 0:03:00]}  a5 {[%clk 0:02:57]} 3. Bg2 {[%clk 0:03:00]}  a4 {[%clk 0:02:58]} 4. O-O {[%clk 0:03:00]}  e6 {[%clk 0:02:58]} 5. c4 {[%clk 0:02:55]}  Be7 {[%clk 0:02:57]} 6. Nc3 {[%clk 0:02:50]}  a3 {[%clk 0:02:57]} 7. b3 {[%clk 0:02:40]}  d5 {[%clk 0:02:56]} 8. d4 {[%clk 0:02:40]}  O-O {[%clk 0:02:44]} 9. Qc2 {[%clk 0:02:41]}  Nc6 {[%clk 0:02:40]} 10. Rd1 {[%clk 0:02:39]}  Nb4 {[%clk 0:02:40]} 11. Qb1 {[%clk 0:02:36]}  c6 {[%clk 0:02:35]} 12. e4 {[%clk 0:02:36]}  dxe4 {[%clk 0:02:35]} 13. Nxe4 {[%clk 0:02:34]}  Nxe4 {[%clk 0:02:14]} 14. Qxe4 {[%clk 0:02:35]}  c5 {[%clk 0:02:14]} 15. Bf4 {[%clk 0:02:28]}  Qb6 {[%clk 0:02:08]} 16. Ng5 {[%clk 0:02:10]}  f5 {[%clk 0:01:51]} 17. dxc5 {[%clk 0:02:10]}  Bxc5 {[%clk 0:01:50]} 18. Qe2 {[%clk 0:02:11]}  Bd4 {[%clk 0:01:28]} 19. Rxd4 {[%clk 0:01:52]}  Qxd4 {[%clk 0:01:29]} 20. Be5 {[%clk 0:01:39]}  Qd3 {[%clk 0:01:29]} 21. Qh5 {[%clk 0:01:36]}  f4 {[%clk 0:01:08]} 22. Be4 {[%clk 0:01:30]} 1-0


[Site "https://www.chess.com"]

[Event "Titled Tuesday Blitz May 03 Late 2022"]
[White "Sztokbant, Bernardo Vainzoff"]
[Black "Wagner, Dennis"]
[WhiteFideId "2115956"]
[BlackFideId "24650684"]
[WhiteElo "2513"]
[BlackElo "2758"]
[Result "1-0"]
[Round "03"]
[TimeControl "180+1"]
[Date "2022.05.03"]
[WhiteClock "0:00:12"]
[BlackClock "0:00:55"]

1. e4 {[%clk 0:03:00]}  c5 {[%clk 0:02:57]} 2. Nf3 {[%clk 0:03:00]}  d6 {[%clk 0:02:57]} 3. d4 {[%clk 0:03:00]}  cxd4 {[%clk 0:02:58]} 4. Nxd4 {[%clk 0:02:59]}  Nf6 {[%clk 0:02:59]} 5. Nc3 {[%clk 0:02:59]}  a6 {[%clk 0:02:59]} 6. Bg5 {[%clk 0:02:59]}  e6 {[%clk 0:02:59]} 7. Qd2 {[%clk 0:02:57]}  Be7 {[%clk 0:02:55]} 8. O-O-O {[%clk 0:02:54]}  h6 {[%clk 0:02:53]} 9. Be3 {[%clk 0:02:30]}  b5 {[%clk 0:02:51]} 10. f3 {[%clk 0:02:30]}  b4 {[%clk 0:02:42]} 11. Nce2 {[%clk 0:02:28]}  a5 {[%clk 0:02:42]} 12. Kb1 {[%clk 0:02:26]}  O-O {[%clk 0:02:36]} 13. g4 {[%clk 0:02:05]}  d5 {[%clk 0:02:35]} 14. e5 {[%clk 0:02:00]}  Nfd7 {[%clk 0:02:35]} 15. f4 {[%clk 0:01:59]}  a4 {[%clk 0:02:36]} 16. h4 {[%clk 0:01:50]}  Nc5 {[%clk 0:02:04]} 17. Bg2 {[%clk 0:01:49]}  Ne4 {[%clk 0:02:00]} 18. Bxe4 {[%clk 0:01:47]}  dxe4 {[%clk 0:02:01]} 19. g5 {[%clk 0:01:45]}  h5 {[%clk 0:01:59]} 20. Ng3 {[%clk 0:01:39]}  a3 {[%clk 0:01:54]} 21. b3 {[%clk 0:01:38]}  Nd7 {[%clk 0:01:53]} 22. Nc6 {[%clk 0:01:13]}  Qe8 {[%clk 0:01:53]} 23. Nxh5 {[%clk 0:01:11]}  Bb7 {[%clk 0:01:52]} 24. Nxe7+ {[%clk 0:01:11]}  Qxe7 {[%clk 0:01:52]} 25. Qxd7 {[%clk 0:01:07]}  Qxd7 {[%clk 0:01:46]} 26. Rxd7 {[%clk 0:01:08]}  Bd5 {[%clk 0:01:47]} 27. Bc5 {[%clk 0:00:59]}  Rfb8 {[%clk 0:01:44]} 28. f5 {[%clk 0:00:55]}  Rb5 {[%clk 0:01:40]} 29. Be3 {[%clk 0:00:48]}  exf5 {[%clk 0:01:40]} 30. Rf1 {[%clk 0:00:48]}  Be6 {[%clk 0:01:38]} 31. Rd4 {[%clk 0:00:43]}  Rab8 {[%clk 0:01:33]} 32. Nf4 {[%clk 0:00:29]}  R8b7 {[%clk 0:01:25]} 33. h5 {[%clk 0:00:28]}  Rxe5 {[%clk 0:01:21]} 34. Rd8+ {[%clk 0:00:23]}  Kh7 {[%clk 0:01:18]} 35. g6+ {[%clk 0:00:24]}  fxg6 {[%clk 0:01:17]} 36. hxg6+ {[%clk 0:00:25]}  Kh6 {[%clk 0:01:18]} 37. Nxe6+ {[%clk 0:00:17]}  Kxg6 {[%clk 0:01:18]} 38. Rg1+ {[%clk 0:00:15]}  Kf7 {[%clk 0:01:06]} 39. Rxg7+ {[%clk 0:00:13]}  Kxe6 {[%clk 0:01:05]} 40. Rxb7 {[%clk 0:00:12]}  f4 {[%clk 0:00:59]} 41. Re8+ {[%clk 0:00:12]}  Kf5 {[%clk 0:00:57]} 42. Rf7+ {[%clk 0:00:12]}  Kg6 {[%clk 0:00:55]} 43. Rxe5 {[%clk 0:00:12]}  fxe3 {[%clk 0:00:55]} 44. Rxe4 {[%clk 0:00:12]}  Kxf7 {[%clk 0:00:55]} 45. Rxe3 {[%clk 0:00:12]} 1-0


[Site "https://www.chess.com"]

[Event "Titled Tuesday Blitz May 03 Late 2022"]
[White "Tanenbaum, Zachary"]
[Black "Mogranzini, Roberto"]
[WhiteFideId "2060850"]
[BlackFideId "810894"]
[WhiteElo "2727"]
[BlackElo "2512"]
[Result "1-0"]
[Round "03"]
[TimeControl "180+1"]
[Date "2022.05.03"]
[WhiteClock "0:01:53"]
[BlackClock "0:01:37"]

1. e4 {[%clk 0:02:59]}  e6 {[%clk 0:02:57]} 2. d4 {[%clk 0:03:00]}  d5 {[%clk 0:02:57]} 3. Nc3 {[%clk 0:03:01]}  Bb4 {[%clk 0:02:57]} 4. exd5 {[%clk 0:03:02]}  exd5 {[%clk 0:02:56]} 5. Bd3 {[%clk 0:03:02]}  Ne7 {[%clk 0:02:54]} 6. Nf3 {[%clk 0:03:01]}  Bf5 {[%clk 0:02:51]} 7. Bxf5 {[%clk 0:02:35]}  Nxf5 {[%clk 0:02:51]} 8. Qd3 {[%clk 0:02:36]}  Bxc3+ {[%clk 0:02:13]} 9. bxc3 {[%clk 0:02:35]}  Nd6 {[%clk 0:02:11]} 10. O-O {[%clk 0:02:31]}  O-O {[%clk 0:02:10]} 11. Ng5 {[%clk 0:02:27]}  g6 {[%clk 0:02:10]} 12. Qh3 {[%clk 0:02:27]}  h5 {[%clk 0:02:08]} 13. f4 {[%clk 0:02:11]}  Qd7 {[%clk 0:02:02]} 14. Qf3 {[%clk 0:02:11]}  c6 {[%clk 0:01:55]} 15. Ba3 {[%clk 0:02:05]}  Re8 {[%clk 0:01:54]} 16. Bxd6 {[%clk 0:01:53]}  Qxd6 {[%clk 0:01:55]} 17. f5 {[%clk 0:01:54]}  Qe7 {[%clk 0:01:37]} 18. fxg6 {[%clk 0:01:53]}  fxg6 {[%clk 0:01:37]} 19. Rae1 {[%clk 0:01:53]} 1-0


[Site "https://www.chess.com"]

[Event "Titled Tuesday Blitz May 03 Late 2022"]
[White "Toncheva, Nadya"]
[Black "Yurovskykh, Oleksandr"]
[WhiteFideId "2924056"]
[BlackFideId "14134020"]
[WhiteElo "1884"]
[BlackElo "2292"]
[Result "1-0"]
[Round "03"]
[TimeControl "180+1"]
[Date "2022.05.03"]
[WhiteClock "0:00:02"]
[BlackClock "0:00:02"]

1. e4 {[%clk 0:03:00]}  e6 {[%clk 0:02:58]} 2. d4 {[%clk 0:03:00]}  d5 {[%clk 0:02:59]} 3. Nd2 {[%clk 0:03:01]}  dxe4 {[%clk 0:02:58]} 4. Nxe4 {[%clk 0:03:01]}  Bd7 {[%clk 0:02:58]} 5. Nf3 {[%clk 0:03:00]}  Bc6 {[%clk 0:02:59]} 6. Bd3 {[%clk 0:03:00]}  Nd7 {[%clk 0:02:58]} 7. Qe2 {[%clk 0:03:00]}  Ngf6 {[%clk 0:02:58]} 8. O-O {[%clk 0:02:58]}  Nxe4 {[%clk 0:02:53]} 9. Bxe4 {[%clk 0:02:57]}  Bxe4 {[%clk 0:02:53]} 10. Qxe4 {[%clk 0:02:58]}  c6 {[%clk 0:02:53]} 11. c3 {[%clk 0:02:57]}  Nf6 {[%clk 0:02:51]} 12. Qe2 {[%clk 0:02:57]}  Be7 {[%clk 0:02:49]} 13. Bf4 {[%clk 0:02:56]}  O-O {[%clk 0:02:41]} 14. Rfe1 {[%clk 0:02:55]}  h6 {[%clk 0:02:37]} 15. Rad1 {[%clk 0:02:54]}  Bd6 {[%clk 0:02:37]} 16. Ne5 {[%clk 0:02:53]}  Qc7 {[%clk 0:02:27]} 17. c4 {[%clk 0:02:52]}  Qe7 {[%clk 0:02:08]} 18. Rd3 {[%clk 0:02:38]}  Rfd8 {[%clk 0:02:02]} 19. Rg3 {[%clk 0:02:30]}  Kf8 {[%clk 0:01:46]} 20. Qe3 {[%clk 0:02:09]}  Nh5 {[%clk 0:01:30]} 21. Rf3 {[%clk 0:02:09]}  Nxf4 {[%clk 0:01:25]} 22. Qxf4 {[%clk 0:01:54]}  Bxe5 {[%clk 0:01:22]} 23. Rxe5 {[%clk 0:01:46]}  Rd7 {[%clk 0:01:19]} 24. h3 {[%clk 0:01:12]}  Rad8 {[%clk 0:01:15]} 25. Re4 {[%clk 0:00:54]}  Kg8 {[%clk 0:00:49]} 26. Rg3 {[%clk 0:00:47]}  Kf8 {[%clk 0:00:37]} 27. Qe5 {[%clk 0:00:41]}  Qf6 {[%clk 0:00:11]} 28. Qc5+ {[%clk 0:00:37]}  Kg8 {[%clk 0:00:09]} 29. Rf3 {[%clk 0:00:22]}  Qg6 {[%clk 0:00:07]} 30. Rg4 {[%clk 0:00:15]}  Qb1+ {[%clk 0:00:06]} 31. Kh2 {[%clk 0:00:15]}  Qxb2 {[%clk 0:00:04]} 32. Qe5 {[%clk 0:00:14]}  f6 {[%clk 0:00:03]} 33. Qxf6 {[%clk 0:00:08]}  Qxa2 {[%clk 0:00:03]} 34. Qxe6+ {[%clk 0:00:06]}  Kh8 {[%clk 0:00:02]} 35. Qg6 {[%clk 0:00:03]}  a5 {[%clk 0:00:02]} 36. Rf6 {[%clk 0:00:02]}  Qxc4 {[%clk 0:00:02]} 37. Qh5 {[%clk 0:00:01]}  Kg8 {[%clk 0:00:01]} 38. Rxh6 {[%clk 0:00:01]}  b5 {[%clk 0:00:02]} 39. Rh8# {[%clk 0:00:02]} 1-0


[Site "https://www.chess.com"]

[Event "Titled Tuesday Blitz May 03 Late 2022"]
[White "Vlassov, Nikolai"]
[Black "Bas Mas, Jose Joaquin"]
[WhiteFideId "4103360"]
[BlackFideId "22219064"]
[WhiteElo "2407"]
[BlackElo "2212"]
[Result "1-0"]
[Round "03"]
[TimeControl "180+1"]
[Date "2022.05.03"]
[WhiteClock "0:00:32"]
[BlackClock "0:00:30"]

1. e4 {[%clk 0:03:00]}  c5 {[%clk 0:02:59]} 2. c3 {[%clk 0:03:00]}  d5 {[%clk 0:02:59]} 3. exd5 {[%clk 0:03:00]}  Qxd5 {[%clk 0:03:00]} 4. d4 {[%clk 0:03:00]}  Nf6 {[%clk 0:03:00]} 5. Nf3 {[%clk 0:03:00]}  e6 {[%clk 0:03:01]} 6. a3 {[%clk 0:03:00]}  Nc6 {[%clk 0:03:01]} 7. Be3 {[%clk 0:03:00]}  Ng4 {[%clk 0:02:52]} 8. Bd3 {[%clk 0:02:34]}  cxd4 {[%clk 0:02:39]} 9. cxd4 {[%clk 0:02:33]}  Nxe3 {[%clk 0:02:28]} 10. fxe3 {[%clk 0:02:33]}  Be7 {[%clk 0:02:27]} 11. Nc3 {[%clk 0:02:33]}  Qh5 {[%clk 0:02:25]} 12. O-O {[%clk 0:02:31]}  a6 {[%clk 0:02:25]} 13. Ne4 {[%clk 0:02:28]}  O-O {[%clk 0:02:21]} 14. Qe2 {[%clk 0:02:25]}  b5 {[%clk 0:02:17]} 15. Rac1 {[%clk 0:02:15]}  Bb7 {[%clk 0:02:17]} 16. Nc5 {[%clk 0:02:15]}  Bxc5 {[%clk 0:02:10]} 17. Rxc5 {[%clk 0:02:14]}  Qh6 {[%clk 0:02:11]} 18. Be4 {[%clk 0:02:10]}  Nd8 {[%clk 0:01:39]} 19. Bxb7 {[%clk 0:02:09]}  Nxb7 {[%clk 0:01:40]} 20. Rc7 {[%clk 0:02:09]}  Nd6 {[%clk 0:01:38]} 21. Ne5 {[%clk 0:02:09]}  Nf5 {[%clk 0:01:38]} 22. Rf3 {[%clk 0:01:59]}  Rac8 {[%clk 0:01:34]} 23. Nxf7 {[%clk 0:01:55]}  Qf6 {[%clk 0:01:24]} 24. Rxc8 {[%clk 0:01:51]}  Rxc8 {[%clk 0:01:22]} 25. Ne5 {[%clk 0:01:45]}  Rc1+ {[%clk 0:01:18]} 26. Rf1 {[%clk 0:01:37]}  Rc7 {[%clk 0:01:11]} 27. Qf3 {[%clk 0:01:21]}  Qd8 {[%clk 0:01:09]} 28. Qe4 {[%clk 0:01:14]}  g6 {[%clk 0:01:01]} 29. Nd3 {[%clk 0:01:09]}  Qd5 {[%clk 0:00:55]} 30. Qf4 {[%clk 0:01:00]}  Rc2 {[%clk 0:00:48]} 31. Rf2 {[%clk 0:00:58]}  Rxf2 {[%clk 0:00:44]} 32. Kxf2 {[%clk 0:00:59]}  Qc4 {[%clk 0:00:39]} 33. Qe4 {[%clk 0:00:41]}  a5 {[%clk 0:00:39]} 34. Nc5 {[%clk 0:00:35]}  Kf7 {[%clk 0:00:31]} 35. Qb7+ {[%clk 0:00:33]}  Kf6 {[%clk 0:00:30]} 36. Ne4# {[%clk 0:00:32]} 1-0


[Site "https://www.chess.com"]

[Event "Titled Tuesday Blitz May 03 Late 2022"]
[White "Voege, Tobias"]
[Black "Yuan, Qingyu"]
[WhiteFideId "1270513"]
[BlackFideId "8609772"]
[WhiteElo "2297"]
[BlackElo "2359"]
[Result "0-1"]
[Round "03"]
[TimeControl "180+1"]
[Date "2022.05.03"]
[WhiteClock "0:00:04"]
[BlackClock "0:00:06"]

1. d4 {[%clk 0:03:00]}  d5 {[%clk 0:02:58]} 2. c4 {[%clk 0:03:00]}  e6 {[%clk 0:02:59]} 3. Nc3 {[%clk 0:03:01]}  Nf6 {[%clk 0:02:59]} 4. Bg5 {[%clk 0:03:01]}  dxc4 {[%clk 0:02:59]} 5. e4 {[%clk 0:02:58]}  c5 {[%clk 0:02:57]} 6. d5 {[%clk 0:02:57]}  Be7 {[%clk 0:02:53]} 7. Bxc4 {[%clk 0:02:51]}  exd5 {[%clk 0:02:53]} 8. Bxf6 {[%clk 0:02:50]}  Bxf6 {[%clk 0:02:47]} 9. Bxd5 {[%clk 0:02:49]}  O-O {[%clk 0:02:45]} 10. Nge2 {[%clk 0:02:48]}  Qe7 {[%clk 0:02:44]} 11. O-O {[%clk 0:02:47]}  Nc6 {[%clk 0:02:44]} 12. Qa4 {[%clk 0:02:40]}  Bd7 {[%clk 0:02:34]} 13. Qa3 {[%clk 0:02:36]}  Rab8 {[%clk 0:02:17]} 14. Rad1 {[%clk 0:02:13]}  b5 {[%clk 0:02:11]} 15. Qb3 {[%clk 0:01:52]}  c4 {[%clk 0:02:05]} 16. Qc2 {[%clk 0:01:48]}  Nb4 {[%clk 0:02:05]} 17. Qb1 {[%clk 0:01:39]}  Rfc8 {[%clk 0:01:48]} 18. Ng3 {[%clk 0:01:05]}  g6 {[%clk 0:01:46]} 19. f4 {[%clk 0:00:59]}  Nd3 {[%clk 0:01:06]} 20. e5 {[%clk 0:00:51]}  Bg7 {[%clk 0:01:06]} 21. Be4 {[%clk 0:00:49]}  Bg4 {[%clk 0:00:49]} 22. Rd2 {[%clk 0:00:41]}  b4 {[%clk 0:00:41]} 23. Nd5 {[%clk 0:00:30]}  Qc5+ {[%clk 0:00:41]} 24. Kh1 {[%clk 0:00:30]}  Rd8 {[%clk 0:00:38]} 25. Qc2 {[%clk 0:00:18]}  Rxd5 {[%clk 0:00:30]} 26. Bxd5 {[%clk 0:00:19]}  Qxd5 {[%clk 0:00:31]} 27. b3 {[%clk 0:00:19]}  Qc6 {[%clk 0:00:19]} 28. Rxd3 {[%clk 0:00:14]}  c3 {[%clk 0:00:20]} 29. Rd6 {[%clk 0:00:12]}  Qb5 {[%clk 0:00:15]} 30. Re1 {[%clk 0:00:11]}  Bf8 {[%clk 0:00:15]} 31. Rd4 {[%clk 0:00:09]}  Bc5 {[%clk 0:00:15]} 32. Rd5 {[%clk 0:00:08]}  Be6 {[%clk 0:00:14]} 33. Rd3 {[%clk 0:00:08]}  a5 {[%clk 0:00:13]} 34. f5 {[%clk 0:00:08]}  gxf5 {[%clk 0:00:13]} 35. Rf3 {[%clk 0:00:08]}  Qd7 {[%clk 0:00:09]} 36. Nxf5 {[%clk 0:00:08]}  Qd2 {[%clk 0:00:09]} 37. Qxd2 {[%clk 0:00:08]}  cxd2 {[%clk 0:00:09]} 38. Rd1 {[%clk 0:00:08]}  Bxf5 {[%clk 0:00:06]} 39. Rxf5 {[%clk 0:00:09]}  Be3 {[%clk 0:00:07]} 40. Rf3 {[%clk 0:00:09]}  Bh6 {[%clk 0:00:06]} 41. Rh3 {[%clk 0:00:09]}  Rc8 {[%clk 0:00:05]} 42. Rf3 {[%clk 0:00:07]}  Rc2 {[%clk 0:00:03]} 43. Kg1 {[%clk 0:00:06]}  Rxa2 {[%clk 0:00:04]} 44. Kf1 {[%clk 0:00:06]}  a4 {[%clk 0:00:03]} 45. bxa4 {[%clk 0:00:06]}  Rxa4 {[%clk 0:00:04]} 46. Rb3 {[%clk 0:00:06]}  Bf4 {[%clk 0:00:03]} 47. g3 {[%clk 0:00:06]}  Bh6 {[%clk 0:00:03]} 48. Ke2 {[%clk 0:00:06]}  Kf8 {[%clk 0:00:04]} 49. h4 {[%clk 0:00:06]}  Ke7 {[%clk 0:00:04]} 50. g4 {[%clk 0:00:05]}  Bf4 {[%clk 0:00:04]} 51. Kf3 {[%clk 0:00:05]}  Bxe5 {[%clk 0:00:03]} 52. Rxd2 {[%clk 0:00:05]}  Bc3 {[%clk 0:00:04]} 53. Re2+ {[%clk 0:00:05]}  Kf6 {[%clk 0:00:04]} 54. Re4 {[%clk 0:00:06]}  Ra1 {[%clk 0:00:04]} 55. Rc4 {[%clk 0:00:03]}  Rf1+ {[%clk 0:00:04]} 56. Kg2 {[%clk 0:00:03]}  Rd1 {[%clk 0:00:04]} 57. Rbxc3 {[%clk 0:00:03]}  bxc3 {[%clk 0:00:04]} 58. Rxc3 {[%clk 0:00:04]}  Rd4 {[%clk 0:00:05]} 59. Kf3 {[%clk 0:00:04]}  h6 {[%clk 0:00:04]} 60. Rc6+ {[%clk 0:00:04]}  Kg7 {[%clk 0:00:05]} 61. h5 {[%clk 0:00:04]}  Rd3+ {[%clk 0:00:05]} 62. Kf4 {[%clk 0:00:04]}  Ra3 {[%clk 0:00:06]} 63. Rc5 {[%clk 0:00:04]}  Ra4+ {[%clk 0:00:06]} 64. Kg3 {[%clk 0:00:05]}  Ra1 {[%clk 0:00:07]} 65. Kf4 {[%clk 0:00:04]}  Rf1+ {[%clk 0:00:07]} 66. Kg3 {[%clk 0:00:05]}  Rg1+ {[%clk 0:00:07]} 67. Kf4 {[%clk 0:00:05]}  Re1 {[%clk 0:00:07]} 68. Rc6 {[%clk 0:00:05]}  Rd1 {[%clk 0:00:08]} 69. Kg3 {[%clk 0:00:05]}  Rd4 {[%clk 0:00:08]} 70. Rc5 {[%clk 0:00:04]}  Rb4 {[%clk 0:00:08]} 71. g5 {[%clk 0:00:04]}  Rb3+ {[%clk 0:00:07]} 72. Kg4 {[%clk 0:00:04]}  Rb4+ {[%clk 0:00:08]} 73. Kg3 {[%clk 0:00:04]}  hxg5 {[%clk 0:00:08]} 74. Rxg5+ {[%clk 0:00:05]}  Kh6 {[%clk 0:00:09]} 75. Rc5 {[%clk 0:00:05]}  Re4 {[%clk 0:00:08]} 76. Rd5 {[%clk 0:00:05]}  f6 {[%clk 0:00:08]} 77. Rc5 {[%clk 0:00:05]}  Rd4 {[%clk 0:00:08]} 78. Rb5 {[%clk 0:00:05]}  Rc4 {[%clk 0:00:08]} 79. Rd5 {[%clk 0:00:05]}  Rb4 {[%clk 0:00:08]} 80. Rc5 {[%clk 0:00:05]}  Rd4 {[%clk 0:00:08]} 81. Rb5 {[%clk 0:00:06]}  Re4 {[%clk 0:00:09]} 82. Rd5 {[%clk 0:00:06]}  Kg7 {[%clk 0:00:09]} 83. Kf3 {[%clk 0:00:05]}  Rh4 {[%clk 0:00:09]} 84. Kg3 {[%clk 0:00:06]}  Rc4 {[%clk 0:00:09]} 85. Rb5 {[%clk 0:00:05]}  Kh7 {[%clk 0:00:10]} 86. Ra5 {[%clk 0:00:05]}  Kh6 {[%clk 0:00:10]} 87. Rf5 {[%clk 0:00:05]}  Kg7 {[%clk 0:00:09]} 88. Rb5 {[%clk 0:00:05]}  Re4 {[%clk 0:00:09]} 89. Rc5 {[%clk 0:00:05]}  Rd4 {[%clk 0:00:09]} 90. Rb5 {[%clk 0:00:05]}  Rc4 {[%clk 0:00:09]} 91. Rd5 {[%clk 0:00:05]}  Kh6 {[%clk 0:00:08]} 92. Rb5 {[%clk 0:00:05]}  Rc6 {[%clk 0:00:08]} 93. Rd5 {[%clk 0:00:06]}  Ra6 {[%clk 0:00:08]} 94. Kg4 {[%clk 0:00:05]}  Ra1 {[%clk 0:00:08]} 95. Rc5 {[%clk 0:00:05]}  Rg1+ {[%clk 0:00:08]} 96. Kf4 {[%clk 0:00:05]}  Rg2 {[%clk 0:00:08]} 97. Rd5 {[%clk 0:00:05]}  Rf2+ {[%clk 0:00:08]} 98. Kg4 {[%clk 0:00:04]}  Rf1 {[%clk 0:00:09]} 99. Rc5 {[%clk 0:00:02]}  Rg1+ {[%clk 0:00:09]} 100. Kf4 {[%clk 0:00:02]}  Rh1 {[%clk 0:00:10]} 101. Kg4 {[%clk 0:00:03]}  Rf1 {[%clk 0:00:10]} 102. Rf5 {[%clk 0:00:02]}  Rg1+ {[%clk 0:00:10]} 103. Kf4 {[%clk 0:00:03]}  Kg7 {[%clk 0:00:10]} 104. Rb5 {[%clk 0:00:02]}  Rf1+ {[%clk 0:00:10]} 105. Kg4 {[%clk 0:00:03]}  Rd1 {[%clk 0:00:11]} 106. Rb7+ {[%clk 0:00:03]}  Kh6 {[%clk 0:00:11]} 107. Rb5 {[%clk 0:00:04]}  Re1 {[%clk 0:00:09]} 108. Kf5 {[%clk 0:00:04]}  Rf1+ {[%clk 0:00:09]} 109. Kg4 {[%clk 0:00:04]}  Kg7 {[%clk 0:00:08]} 110. Rb7+ {[%clk 0:00:03]}  Kg8 {[%clk 0:00:09]} 111. Rb5 {[%clk 0:00:04]}  Rg1+ {[%clk 0:00:07]} 112. Kf5 {[%clk 0:00:04]}  Rg5+ {[%clk 0:00:06]} 0-1


[Site "https://www.chess.com"]